Cogmind - Beta 14 @@@ ROGUE MODE // 2024.08.20 @ 15:37:47 Player: Sgt. Smokeweed Result: Self-destructed Performance ------------- Evolutions (1) 500 Regions Visited (2) 400 Robots Destroyed (21) 105 Value Destroyed (512) 512 Prototype IDs (1) 20 Alien Tech Used (0) 0 Bonus (0) 0 TOTAL SCORE: 1537 Bonus ------- None Cogmind --------- Core Integrity 144/400 Matter 280/300 Energy 265/265 System Corruption 8% Temperature Cool (0) Movement Treading (160) Location -9/Materials Parts ------- > --- POWER (1) -------- Improved Ion Engine > --- PROPULSION (2) --- Light Treads > --- UTILITY (4) ------ Cooling System > --- WEAPON (2) ------- Improved Medium Laser Improved Medium Laser > --- INVENTORY (5) ---- Heat Sink Cooling System Particle Charger Particle Charger Peak State ------------ > --- POWER ------------ Improved Ion Engine > --- PROPULSION ------- Light Treads Light Treads > --- UTILITY ---------- Heat Sink Cooling System Cooling System Particle Charger > --- WEAPON ----------- Improved Medium Laser Improved Medium Laser > --- INVENTORY -------- Heat Sink Heat Sink Particle Charger Particle Charger [Rating: 18] Favorites ----------- Power Ion Engine Engine Ion Engine Propulsion Light Treads Treads Light Treads Utility Heat Sink Device Heat Sink Protection Light Armor Plating Weapon Improved Medium Laser Energy Gun Improved Medium Laser Ballistic Gun Light Assault Rifle Build | -11 -10 -9 ------- Run | Yrd Mat Mat Slots Evolved 2 | . . 2 Power . | . . . Propulsion . | . . . Utility 2 | . . 2 Weapon . | . . . Parts Attached 27 | 5 3 19 Power 2 | 1 . 1 Engine 2 | 1 . 1 Core . | . . . Reactor . | . . . Propulsion 6 | 2 . 4 Treads 6 | 2 . 4 Leg . | . . . Wheel . | . . . Hover . | . . . Flight . | . . . Utility 11 | . 3 8 Device 9 | . 1 8 Storage . | . . . Processor . | . . . Hackware . | . . . Protection 2 | . 2 . Artifact . | . . . Weapon 8 | 2 . 6 Energy Gun 7 | 1 . 6 Energy Cannon . | . . . Ballistic Gun 1 | 1 . . Ballistic Cannon . | . . . Launcher . | . . . Special Weapon . | . . . Impact Weapon . | . . . Slashing Weapon . | . . . Piercing Weapon . | . . . Special Melee Weapon . | . . . Unidentified Prototypes 1 | . . 1 Corrupted Parts 1 | . . 1 System Corruption 8 | . . 8 Parts Lost 9 | . . 9 Power 1 | . . 1 Propulsion 1 | . . 1 Utility 5 | . . 5 Weapon 2 | . . 2 Highest Loss Streak 4 | . . 4 To Critical Strikes . | . . . Average Slot Usage (%) 89 | . 94 87 Engine 11 | . 14 10 Treads 23 | . 28 21 Device 23 | . 5 31 Protection 6 | . 16 1 Energy Gun 18 | . 14 21 Ballistic Gun 4 | . 14 . Peak Build Rating 18 | 5 9 18 Average Rating 10 | 3 7 12 On Entrance 4 | . 5 9 Naked Turns . | . . . Heaviest Build 21 | 8 14 21 Greatest Support 40 | 40 40 40 Greatest Overweight (x) . | . . . Average Overweight (x) . | . . . Largest Inventory Capacity 5 | 5 5 5 Average Capacity 5 | 5 5 5 Most Carried 5 | . . 5 Average Carried 1 | . . 2 Final Capacity 5 | 5 5 5 Final Carried 4 | . . 4 Class Distribution -------------------- 56% | Scavenger-Mutant 43% | Mutant Dominant Class ---------------- Mutant | -10/Materials Scavenger-Mutant | -9/Materials Resources | -11 -10 -9 ----------- Run | Yrd Mat Mat Matter Collected 439 | 250 25 164 Remotely . | . . . Salvage Created 758 | . 113 645 Parts 47 | . 6 41 Haulers Intercepted 2 | . . 2 Recyclers Shooed . | . . . Parts Field Recycled . | . . . Retrieved Matter . | . . . Parts Self-Destructed . | . . . Prevented . | . . . Kills | -11 -10 -9 ------- Run | Yrd Mat Mat Combat Hostiles Destroyed 14 | . 2 12 Guns 14 | . 2 12 Classes Destroyed 6 | . 2 4 Worker 2 | . . 2 Hauler 2 | . . 2 Watcher 3 | . 1 2 Swarmer 4 | . . 4 Grunt 5 | . 2 3 Sentry 5 | . . 5 Best Kill Streak 6 | . 2 6 Combat Bots Only 3 | . 1 3 Max Kills in Single Turn 2 | . 1 2 Gunslinging . | . . . Exploded . | . . . Melee . | . . . Uniques/NPCs Destroyed . | . . . Combat | -11 -10 -9 -------- Run | Yrd Mat Mat Hostile Shots Fired 194 | . 6 188 Missed 61 | . 3 58 Damage Taken 1466 | . 36 1430 Core 256 | . . 256 Absorbed by Shields . | . . . Core Remaining (%) 100 | 100 100 . Volleys Fired 59 | . 10 49 Largest 2 | . 2 2 Hottest 112 | . 70 112 Shots Fired 116 | . 19 97 Gun 116 | . 19 97 Cannon . | . . . Launcher . | . . . Special . | . . . Kinetic 10 | . 10 . Thermal 88 | . 9 79 Explosive . | . . . Electromagnetic 18 | . . 18 Robot Hit Streak 22 | . 16 22 Robot Miss Streak 6 | . 2 6 Penetration Max . | . . . Secondary Targets 3 | . . 3 Max Gunslinging Chain 1 | . . 1 Shots Hit Robots 76 | . 16 60 Core Hits 36 | . 9 27 Critical Kills . | . . . Critical Parts Destroyed . | . . . Critical Strikes 5 | . 2 3 Burn 5 | . 2 3 Melee Attacks . | . . . Impact . | . . . Slashing . | . . . Piercing . | . . . Sneak Attacks . | . . . Combat Hostiles . | . . . Follow-up Attacks . | . . . Damage Inflicted 1246 | . 167 1079 Guns 1162 | . 159 1003 Cannons . | . . . Explosions 68 | . . 68 Melee . | . . . Ramming 16 | . 8 8 Kinetic 58 | . 58 . Thermal 946 | . 101 845 Explosive . | . . . Electromagnetic 226 | . . 226 Impact . | . . . Slashing . | . . . Piercing . | . . . Highest Corruption 8 | . . 8 Average Corruption 8 | . . 8 Corruption Purged . | . . . Corruption Blocked . | . . . Effects 26 | . . 26 Message Errors 9 | . . 9 Matter Fused 3 | . . 3 Heat Flow Errors 3 | . . 3 Energy Discharges 5 | . . 5 Data Loss (minor) 5 | . . 5 Data Loss (major) 1 | . . 1 Overload Shots . | . . . Overflow Damage 2 | . . 2 Projectiles . | . . . Explosions 2 | . . 2 Melee . | . . . Knockbacks . | . . . Impact . | . . . Kinetic . | . . . Secondary . | . . . Self-Inflicted Damage 16 | . . 16 Shots 1 | . . 1 Rammed 2 | . 1 1 Targets Rammed 2 | . 1 1 Kicked . | . . . Crushed . | . . . Highest Temperature 452 | . 135 452 Average Temperature 141 | . 52 177 Received Heat Transfer 354 | . 21 333 Effects 5 | . . 5 Shutdowns 1 | . . 1 Energy Bleed 1 | . . 1 Interference 1 | . . 1 Damage (minor) 2 | . . 2 Siege Activations . | . . . Robots Corrupted . | . . . Combat Hostiles . | . . . Parts Fried 1 | . . 1 Impact Corruptions . | . . . Robots Melted . | . . . Combat Hostiles . | . . . Parts Melted 4 | . 1 3 Heat Transferred 2505 | . 444 2061 Parts Sabotaged . | . . . Parts Stolen . | . . . Parts Stripped . | . . . Power Chain Reactions 1 | . . 1 Alert | -11 -10 -9 ------- Run | Yrd Mat Mat Peak Influence 202 | . 64 202 Initial 26 | . . 26 Average 82 | . 39 110 Maximum Alert Level 1 | . . 1 Low Security (%) 88 | 100 100 82 Level 1 11 | . . 17 Level 2 . | . . . Level 3 . | . . . Level 4 . | . . . Level 5 . | . . . High Security . | . . . Max Security . | . . . Squads Dispatched 1 | . . 1 Investigation . | . . . Extermination . | . . . Reinforcement 1 | . . 1 Assault . | . . . Garrison . | . . . Intercept . | . . . Searches Triggered . | . . . Construction Impeded . | . . . Haulers Reinforced . | . . . Active Scanning Responses . | . . . Cargo Convoy Interrupts . | . . . Stealth | -11 -10 -9 --------- Run | Yrd Mat Mat Distress Signals 6 | . 2 4 Communications Jammed . | . . . Distress Signals . | . . . Times Spotted 40 | . 6 34 Peak Tracking Total 12 | . 2 12 Tactical Retreats 1 | . . 1 Traps | -11 -10 -9 ------- Run | Yrd Mat Mat Traps Triggered . | . . . Indirectly . | . . . Trap Hack Attempts . | . . . Triggered . | . . . Disarmed . | . . . Reprogrammed . | . . . Reused . | . . . Traps Extracted . | . . . Installed . | . . . Triggered . | . . . Machines | -11 -10 -9 ---------- Run | Yrd Mat Mat Machines Disabled 1 | . . 1 Max in Single Turn 1 | . . 1 Machines Repaired . | . . . Machines Dismantled . | . . . Machines Sabotaged . | . . . Overloaded Fab Kills . | . . . Hacking | -11 -10 -9 --------- Run | Yrd Mat Mat Machines Accessed 4 | . 2 2 Terminals 4 | . 2 2 Fabricators . | . . . Repair Stations . | . . . Recycling Units . | . . . Scanalyzers . | . . . Garrison Access . | . . . Total Hacks 8 | . 3 5 Successful 2 | . 1 1 Failed 6 | . 2 4 Catastrophic 2 | . 1 1 Database Lockouts . | . . . Manual 6 | . 1 5 Terminals 8 | . 3 5 Fabricators . | . . . Repair Stations . | . . . Recycling Units . | . . . Scanalyzers . | . . . Garrison Access . | . . . Terminal Hacks 2 | . 1 1 Branch Access Points 2 | . 1 1 Fabricator Hacks . | . . . Repair Station Hacks . | . . . Recycling Unit Hacks . | . . . Scanalyzer . | . . . Garrison Access Hacks . | . . . Unauthorized Hacks . | . . . Terminals . | . . . Fabricators . | . . . Repair Stations . | . . . Recycling Units . | . . . Scanalyzers . | . . . Garrison Access . | . . . Data Cores Recovered . | . . . Used . | . . . Hacking Detections 2 | . 1 1 Full Trace Events 1 | . 1 . Feedback Events . | . . . Feedback Blocked . | . . . Robot Schematics Acquired . | . . . Robots Built . | . . . Authchips . | . . . Time . | . . . Total Robot Build Rating . | . . . Part Schematics Acquired . | . . . Parts Built . | . . . Authchips . | . . . Time . | . . . Total Part Build Rating . | . . . Parts Repaired . | . . . Time . | . . . Parts Recycled . | . . . Recycled Matter . | . . . Retrieved Matter . | . . . Retrieved Components . | . . . Parts Scanalyzed . | . . . Part Schematics Acquired . | . . . Parts Damaged . | . . . Bothacking | -11 -10 -9 ------------ Run | Yrd Mat Mat Used RIF Installer . | . . . Robots Hacked . | . . . Non-combat . | . . . Combat . | . . . Robot Hacks Applied . | . . . Relay Couplers Released . | . . . Fabnet Peak Effective % . | . . . Robots Rewired . | . . . Allies Hacked . | . . . Hacks Repelled . | . . . Allies | -11 -10 -9 -------- Run | Yrd Mat Mat Total Allies . | . . . Largest Group . | . . . Highest-Rated Group . | . . . Highest-Rated Ally . | . . . Total Orders . | . . . Ally Attacks . | . . . Total Damage . | . . . Kills . | . . . Allies Corrupted . | . . . Allies Melted . | . . . Intel | -11 -10 -9 ------- Run | Yrd Mat Mat Robot Analysis Total . | . . . Derelict Logs Recovered . | . . . Drone Launches . | . . . Drone Recoveries . | . . . Exploration | -11 -10 -9 ------------- Run | Yrd Mat Mat Turns Passed 1279 | 88 359 832 Spaces Moved 651 | 54 204 393 Core 4 | 4 . . Treads 647 | 50 204 393 Legs . | . . . Wheels . | . . . Hover . | . . . Flight . | . . . Fastest Speed 50 | 50 160 160 Average Speed 159 | 151 160 160 Slowest Speed 160 | 160 160 160 Overloaded Moves . | . . . Propulsion Burnouts . | . . . Robots Hopped . | . . . Cave-ins Triggered . | . . . Exploration Rate (%) 26 | 4 34 42 Regions Visited 2 Branch Regions . Pre-discovered Areas . | . . . Known Exits Taken . | . . . Unknown Exits Taken 2 | 1 1 . Scrap Searched . | . . . Spaces Dug . | . . . Terrain Destroyed 3 | . . 3 Melee . | . . . Projectile . | . . . AOE 3 | . . 3 Terrain Rammed . | . . . Walls Destroyed . | . . . Machines Disabled . | . . . Actions | -11 -10 -9 --------- Run | Yrd Mat Mat Total 769 | 58 218 493 Wait 14 | . . 14 Move 649 | 53 203 393 Hop . | . . . Pick Up 2 | . . 2 Fast Attach 20 | 5 3 12 Attach . | . . . Detach . | . . . Swap 7 | . . 7 Drop 10 | . 1 9 Fire 59 | . 10 49 Melee . | . . . Ram . | . . . Kick . | . . . Crush 2 | . 1 1 Escape Stasis . | . . . Rewire 6 | . . 6 Trap . | . . . Miscellaneous . | . . . Route ------- -11/Scrapyard -10/Materials (discovered 2 exits: *Mat / Min) -9/Materials (discovered 2 exits: [*Mat] / Min) History --------- Turn | Location | Event 26 | -11/Scrapyard | Discovered new exit (range 15) 89 | -11/Scrapyard | Entered Materials 213 | -10/Materials | Identified exit to Mines 319 | -10/Materials | Build established: Mutant 424 | -10/Materials | Discovered new exit (range 13) 448 | -10/Materials | Entered another Materials area 448 | -9/Materials | Evolved 2 slots: Utility x2 585 | -9/Materials | Lost 4 parts (2u2w) 823 | -9/Materials | Discovered new exit (range 16) 832 | -9/Materials | Build established: Scavenger-Mutant 1177 | -9/Materials | Identified exit to Mines 1260 | -9/Materials | Core integrity fell below 50% 1280 | -9/Materials | Self-destructed Last Messages --------------- ,%#|BOW9H3QUX4GE S-10 Pest destroyed. System corrupted: Component data lost. Connecting with Terminal... >>Access(Branch) Found 1 branch access point: (85,91) Mines Map updated. System corrupted: Component data lost. System corrupted: Matter fused (-10). C-30 ARC bursts open, deploying its payload. S-10 Pest unfolds itself. Destroyed Flight Unit. Lgt. Treads destroyed. Particle Charger destroyed. Heat Sink destroyed. S-10 Pest destroyed. Heat Sink destroyed. S-10 Pest destroyed. Map ----- +----------------------------------------------------+ | #]] #???????????????# #????????????????? | | #]] #???????????????# ? ????????????????? | | # = #???????????????# "?" ????????????????? | | #=! #???????????????# "?" ????????????????? | | #== #???????????????# ??? ????????????????? | | #== #???????????????? ??????????????????????? | | ##### ############+#??? ??????????????????????? | | ????# ^ ???????????????????????????? | | ????# ^ ???????????????????????????? | | ????# """?????????????????????????????? | | ????# ^ """?????????????????????????????? | | ##### ^ """?????????????????????????????? | | #### #??????????????????????????? | | ####### #??? ???????????????????????????? | | # #???? """ ???????????????????????????? | | T # #?????? R??????????????????????????????? | | # #??????? ""??????????????????????????????? | | # #????????????????????????????????????????? | | # #????????????????????????????????????????? | | # #????????????????????????????????????????? | | ####### #????????????????????????????????????????? | | ??????# #????????????????????????????????????????? | | ??????# ################################?????????? | | ##????# s s ????????? | | ??# s%s ????????? | | """ # s @ """????????????? | | """ + ! k s %[############# "T"????????????? | | """ # #?????????????????????????????? | | ??# #?????????????????????????????? | | ????# ###???????????????????????????? | | ??????# /???????????????????????????? | | ??????# """""" ### ?????????????????????????? | | ??????# "%""""" #???? ???????????????????????? | | ??????# """""" #?????? ??????????????????????? | | ??????# #?????????????????????????????? | | ??????# #?????????????????????????????? | | ??????# ?????????????????????????????? | | ??????# ????????????????????????????? | | ??????# ???????????????????????????? | | ??????# ###########????????????????????????????? | | ??????# #??????????????????????????????????????? | | ??????# #??????????????????????????????????????? | | ??????# #??????????????????????????????????????? | | ??????# #??????????????????????????????????????? | | ?????? #??????????????????????????????????????? | | ?????? ???????????????????????????????????????? | | ?????? ???????????????????????????????????????? | | ???????? ????????????????????????????????????????? | | ?????????????????????????????????????????????????? | | ?????????????????????????????????????????????????? | +----------------------------------------------------+ Best States ------------- Heat Dissipation 70 Energy Generation 12 Energy Capacity 265 Matter Stores 300 Matter Capacity 300 Sight Range 16 Terrain Scan Density 10 Armor Coverage 300 Evasion (%) 40 Recoil Reduction 2 Particle Charging 15 Item Schematics ----------------- None Robot Schematics ------------------ None Fabricated ------------ Nothing Alien Tech Used ----------------- None Achievements -------------- None Challenges ------------ None Game ------ Seed SupersonicImpulseArmor Manual? 1 Play Time 00:08:07 Cumulative 77.8 hours Start 2024.08.20 @ 15:31:05 End 2024.08.20 @ 15:37:47 Sessions 1 Manual Loads 0 Difficulty Rogue Special Mode None Game No. 200 Rogue 125 Adventurer 75 Explorer 0 Win Type - Total 0 Types 0/0/0/0/0/0/0/0/0 Lore% 42 Gallery% 43 Achievement% 35 Wizard Run 0 Options --------- Layout 0 ASCII 0 Keyboard 0 Movement Mouse Keybinds 0 Fullscreen 1 Font 24/Smallcaps Map View 76x50 Zoom Use 0% Tactical HUD 0 Map Filters NONE Filters NONE Steam 1 RUN: 41931da5-7b99-434e-8aaa-925277b47057